lending/lending_fUSD_20241120
["ID","MTS","AMOUNT","RATE_DAILY","PERIOD"]
[342757197,1732114241646,-2376.38494245,0.00010958,2]
[342757198,1732114241655,-2376.38494245,0.00010958,2]
[342757199,1732114241666,-500.0,0.00010958,2]
[342757200,1732114241676,-2376.38494245,0.00010958,2]
[342757201,1732114241688,-500.0,0.00010958,2]
[342757202,1732114241700,-500.0,0.00010958,2]
[342757203,1732114241710,-2376.38494245,0.00010958,2]
[342757204,1732114241719,-2376.38494245,0.00010958,2]
[342757205,1732114241729,-2376.38494245,0.00010958,2]
[342757206,1732114241739,-500.0,0.00010958,2]
[342757207,1732114241750,-2376.38494245,0.00010958,2]
[342757208,1732114241759,-500.0,0.00010958,2]
[342757209,1732114241768,-2376.38494245,0.00010958,2]
[342757210,1732114241778,-500.0,0.00010958,2]
[342757211,1732114241787,-500.0,0.00010958,2]
[342757212,1732114241796,-2376.38494245,0.00010958,2]
[342757213,1732114241806,-500.0,0.00010958,2]
[342757214,1732114241815,-2376.38494245,0.00010958,2]
[342757215,1732114241824,-2376.38494245,0.00010958,2]
[342757216,1732114241840,-500.0,0.00010958,2]
[342757217,1732114241849,-499.99999999,0.00010958,2]
[342757218,1732114241858,-2890.98683828,0.00010958,2]
[342757219,1732114241867,-2890.98683828,0.00010958,2]
[342757220,1732114241876,-2890.98683828,0.00010958,2]
[342757221,1732114241886,-2890.98683828,0.00010958,2]
[342757222,1732114241895,-2890.98683828,0.00010958,2]
[342757223,1732114241904,-2890.98683828,0.00010958,2]
[342757224,1732114241913,-2890.98683828,0.00010958,2]
[342757225,1732114241923,-2890.98683828,0.00010958,2]
[342757226,1732114241934,-2890.98683828,0.00010958,2]
[342757227,1732114241949,-2890.98683828,0.00010958,2]
[342757228,1732114241958,-2890.98683828,0.00010958,2]
[342757229,1732114241967,-2890.98683828,0.00010958,2]
[342757230,1732114241977,-2890.98683828,0.00010958,2]
[342757231,1732114241985,-2890.98683828,0.00010958,2]
[342757232,1732114241995,-2890.98683828,0.00010958,2]
[342757233,1732114242004,-2890.98683828,0.00010958,2]
[342757234,1732114242013,-2890.98683828,0.00010958,2]
[342757235,1732114242023,-2890.98683828,0.00010958,2]
[342757236,1732114242032,-2890.98683828,0.00010958,2]
[342757237,1732114242041,-2890.98683828,0.00010958,2]
[342757238,1732114242050,-2890.98683828,0.00010958,2]
[342757239,1732114242059,-2890.98683828,0.00010958,2]
[342757240,1732114242068,-2890.98683828,0.00010958,2]
[342757241,1732114242082,-2890.98683828,0.00010958,2]
[342757242,1732114242091,-2890.98683828,0.00010958,2]
[342757243,1732114242100,-2890.98683828,0.00010958,2]
[342757244,1732114242109,-2890.98683828,0.00010958,2]
[342757245,1732114242118,-2890.98683828,0.00010958,2]
[342757246,1732114242127,-2890.98683828,0.00010958,2]
[342757247,1732114242136,-500.0,0.00010958,2]
[342757248,1732114242145,-500.0,0.00010958,2]
[342757249,1732114242155,-2376.38494244,0.00010958,2]
[342757250,1732114242163,-2376.38494244,0.00010958,2]
[342757251,1732114242172,-2376.38494244,0.00010958,2]
[342757252,1732114242181,-2376.38494244,0.00010958,2]
[342757253,1732114242190,-3024.82882154,0.00010958,2]
[342757254,1732114242199,-3024.82882154,0.00010958,2]
[342757255,1732114242208,-3024.82882154,0.00010958,2]
[342757256,1732114242217,-3024.82882154,0.00010958,2]
[342757257,1732114242226,-811.67,0.00010959,2]
[342757258,1732114242235,-525.09,0.00010959,2]
[342757259,1732114242244,-2544.17,0.00010959,2]
[342757260,1732114242253,-150.0,0.00010959,2]
[342757261,1732114242263,-299.63,0.00010959,2]
[342757262,1732114242273,-1000.0,0.00010999,2]
[342757263,1732114242282,-420166.96771325,0.00011,2]
[342757264,1732114242292,-1856262.81479712,0.00011,2]
[342757265,1732114242301,-340273.03913296,0.00011,2]
[342757266,1732114242311,-421.93189667,0.00011016,2]
[342757267,1732114242323,-1000.0,0.00011063,2]
[342757268,1732114242335,-3000.0,0.000111,2]
[342757269,1732114242344,-421.93189667,0.0001132,2]
[342757270,1732114242352,-690.58,0.00011369,2]
[342757271,1732114242362,-239.01853305,0.000115,5]
[342757272,1732114242371,-2544.17,0.00011507,2]
[342757273,1732114242379,-2751.0,0.00011507,2]
[342757274,1732114242388,-278.9,0.00011668,2]
[342757275,1732114242397,-587.56970712,0.000119,2]
[342757276,1732114242406,-433.0,0.00011976,2]
[342757277,1732114242415,-587.0,0.00011976,2]
[342757278,1732114242425,-721.1,0.00011984,2]
[342757279,1732114242434,-603.96,0.00012033,2]
[342757280,1732114242442,-2544.17,0.00012055,2]
[342757281,1732114242451,-1000.0,0.0001217,2]
[342757282,1732114242460,-3000.0,0.0001235,2]
[342757283,1732114242470,-603.96,0.00012458,2]
[342757284,1732114242479,-292.61719522,0.000125,2]
[342757285,1732114242488,-2544.17,0.00012603,2]
[342757286,1732114242498,-1121.03,0.00012622,2]
[342757287,1732114242507,-616.17,0.0001269,2]
[342757288,1732114242517,-690.58,0.00012739,2]
[342757289,1732114242526,-278.9,0.00012835,2]
[342757290,1732114242535,-603.96,0.00012884,2]
[342757291,1732114242544,-813.85068454,0.00013,2]
[342757292,1732114242554,-150.0,0.00013,2]
[342757293,1732114242569,-150.0,0.00013,2]
[342757294,1732114242581,-150.0,0.00013,2]
[342757295,1732114242590,-564.0,0.00013,2]
[342757296,1732114242600,-1256.0,0.00013,2]
[342757297,1732114242609,-1994.0,0.00013,2]
[342757298,1732114242618,-150.0,0.00013,2]
[342757299,1732114242628,-560.0,0.00013,2]
[342757300,1732114242638,-1926.0,0.00013,2]
[342757301,1732114242648,-3747.0,0.00013,2]
[342757302,1732114242658,-1260.0,0.00013,2]
[342757303,1732114242667,-920.0,0.00013,2]
[342757305,1732114242677,-815.0,0.00013,2]
[342757307,1732114242686,-3514.0,0.00013,2]
[342757308,1732114242696,-150.0,0.00013,2]
[342757310,1732114242706,-13654.0,0.00013,2]
[342757313,1732114242717,-1161.0,0.00013,2]
[342757314,1732114242726,-5939.0,0.00013,2]
[342757316,1732114242736,-150.0,0.00013,2]
[342757318,1732114242745,-721.1,0.00013074,2]
[342757320,1732114242755,-2544.17,0.00013151,2]
[342757322,1732114242764,-736.0,0.00013174,2]
[342757324,1732114242774,-823.0,0.00013174,2]
[342757325,1732114242783,-1000.0,0.00013276,2]
[342757326,1732114242791,-603.96,0.0001331,2]
[342757327,1732114242800,-3000.0,0.000136,2]
[342757328,1732114242810,-800.0,0.00013699,2]
[342757329,1732114242819,-800.0,0.00013699,2]
[342757331,1732114242831,-800.0,0.00013699,2]
[342757332,1732114242841,-800.0,0.00013699,2]
[342757334,1732114242850,-800.0,0.00013699,2]
[342757336,1732114242859,-800.0,0.00013699,2]
[342757338,1732114242869,-800.0,0.00013699,2]
[342757340,1732114242878,-800.0,0.00013699,2]
[342757342,1732114242888,-800.0,0.00013699,2]
[342757344,1732114242898,-800.0,0.00013699,2]
[342757345,1732114242907,-800.0,0.00013699,2]
[342757346,1732114242916,-200.0,0.00013699,2]
[342757347,1732114242926,-800.0,0.00013699,2]
[342757348,1732114242940,-257.95,0.00013699,2]
[342757349,1732114242950,-800.0,0.00013699,2]
[342757350,1732114242959,-520.68,0.00013699,2]
[342757351,1732114242968,-800.0,0.00013699,2]
[342757352,1732114242976,-500.0,0.00013699,2]
[342757353,1732114242986,-800.0,0.00013699,2]
[342757354,1732114242995,-2362.43,0.00013699,2]
[342757355,1732114243005,-800.0,0.00013699,2]
[342757356,1732114243014,-800.0,0.00013699,2]
[342757357,1732114243023,-500.0,0.00013699,2]
[342757358,1732114243032,-604.40665154,0.00013699,2]
[342757359,1732114243041,-500.0,0.00013699,2]
[342757360,1732114243050,-500.0,0.00013699,2]
[342757361,1732114243060,-500.0,0.00013699,2]
[342757362,1732114243069,-500.0,0.00013699,2]
[342757363,1732114243081,-500.01334759,0.00013699,2]
[342757364,1732114243090,-162.47067249,0.00013699,2]
[342757365,1732114243100,-313.10981275,0.00013699,2]
[342757366,1732114243109,-526.2340117,0.00013699,2]
[342757367,1732114243118,-603.96,0.00013735,2]
[342757368,1732114243128,-269.36014792,0.00014,2]
[342757369,1732114243137,-278.9,0.00014002,2]
[342757370,1732114243146,-690.58,0.00014109,2]
[342757371,1732114243155,-603.96,0.00014161,2]
[342757372,1732114243164,-1000.0,0.00014247,2]
[342757373,1732114243173,-1000.0,0.00014247,2]
[342757374,1732114243182,-1000.0,0.00014247,2]
[342757375,1732114243192,-727.39999835,0.00014247,2]
[342757376,1732114243201,-1026.0,0.00014491,2]
[342757377,1732114243210,-1152.0,0.00014492,2]
[342757378,1732114243219,-603.96,0.00014586,2]
[342757379,1732114243229,-200.0,0.00014677,2]
[342757380,1732114243238,-1121.03,0.00014823,2]
[342757381,1732114243248,-3000.0,0.0001485,2]
[342757382,1732114243257,-1946.50613828,0.00015,2]
[342757383,1732114243267,-496.08334661,0.00015,2]
[342757384,1732114243276,-310.0,0.00015,2]
[342757385,1732114243285,-200.0,0.00015,2]
[342757386,1732114243295,-5620.0,0.00015,2]
[342757387,1732114243305,-300.0,0.00015068,2]
[342757388,1732114243314,-295.61526132,0.000151,2]
[342757389,1732114243324,-1219.23214019,0.00015235,2]
[342757390,1732114243335,-1500.0,0.00015248,2]
[342757391,1732114243344,-1500.0,0.00015248,2]
[342757392,1732114243354,-1500.0,0.00015248,2]
[342757394,1732114243364,-1517.64,0.000153,2]
[342757396,1732114243373,-172.63,0.0001531,2]
[342757398,1732114243383,-150.99,0.0001531,2]
[342757400,1732114243392,-678.54,0.0001531,2]
[342757402,1732114243401,-9999.99,0.0001531,2]
[342757404,1732114243411,-305.39,0.0001531,2]
[342757406,1732114243419,-1904.97,0.0001531,2]
[342757408,1732114243429,-2806.02,0.0001531,2]
[342757410,1732114243439,-4098.11,0.0001531,2]
[342757412,1732114243448,-299.99,0.0001531,2]
[342757414,1732114243457,-150.99,0.0001531,2]
[342757416,1732114243467,-999.99,0.0001531,2]
[342757418,1732114243476,-953.14,0.0001531,2]
[342757420,1732114243486,-150.69,0.00015342,2]
[342757422,1732114243495,-801.14,0.00015342,2]
[342757424,1732114243505,-155.51,0.00015342,2]
[342757426,1732114243515,-230.03,0.00015342,2]
[342757428,1732114243524,-482.51180001,0.000154,2]
[342757430,1732114243533,-690.58,0.00015479,2]
[342757432,1732114243543,-1613.0,0.00015941,2]
[342757434,1732114243552,-800000.0,0.00016,2]
[342757436,1732114243562,-14599.21470732,0.00016,4]
[342757438,1732114243571,-150.0,0.00016,2]
[342757440,1732114243583,-150.0,0.00016,2]
[342757442,1732114243592,-802.32152508,0.00016,2]
[342757444,1732114243602,-564.0,0.00016,2]
[342757446,1732114243611,-1256.0,0.00016,2]
[342757448,1732114243621,-1994.0,0.00016,2]
[342757450,1732114243630,-150.0,0.00016,2]
[342757452,1732114243640,-560.0,0.00016,2]
[342757454,1732114243649,-1926.0,0.00016,2]
[342757456,1732114243659,-3747.0,0.00016,2]
[342757458,1732114243668,-1260.0,0.00016,2]
[342757460,1732114243677,-920.0,0.00016,2]
[342757462,1732114243687,-815.0,0.00016,2]
[342757464,1732114243696,-3326.896,0.00016,2]
[342757466,1732114243705,-10677.336,0.00016,2]
[342757468,1732114243715,-530.293,0.00016,2]
[342757470,1732114243724,-2130.938,0.00016,2]
[342757472,1732114243733,-150.0,0.00016,2]
[342757474,1732114243743,-3000.0,0.000161,2]
[342757475,1732114243752,-7275.48,0.00016116,2]
[342757478,1732114243762,-281.27,0.00016116,2]
[342757480,1732114243771,-200.0,0.0001634,2]
[342757482,1732114243782,-160.63260832,0.00016438,2]
[342757483,1732114243791,-300.0,0.00016438,2]
[342757484,1732114243800,-2000.0,0.00016546,2]
[342757485,1732114243810,-1182.64220371,0.00016546,2]
[342757486,1732114243820,-2006.89935842,0.00016546,2]
[342757487,1732114243834,-153.0,0.00016574,2]
[342757488,1732114243844,-153.0,0.00016601,2]
[342757489,1732114243853,-153.0,0.00016626,2]
[342757490,1732114243863,-1098.50462241,0.00016699,2]
[342757491,1732114243872,-218.8,0.00016712,2]
[342757492,1732114243881,-690.58,0.00016849,2]
[342757493,1732114243891,-158.6795,0.00016928,2]
[342757494,1732114243900,-1121.03,0.00017024,2]
[342757495,1732114243909,-900.0,0.00017535,2]
[342757496,1732114243919,-1500.0,0.00017808,2]
[342757497,1732114243929,-1500.0,0.00017835,2]
[342757498,1732114243945,-328.46952928,0.00018,2]
[342757499,1732114243954,-1128.62963449,0.00018,2]
[342757500,1732114243964,-1027.43137389,0.00018,2]
[342757501,1732114243975,-156.0,0.00018,10]
[342757502,1732114243984,-200.0,0.00018,2]
[342757503,1732114243993,-2500.0,0.00018082,2]
[342757504,1732114244002,-1688.21955239,0.000181,2]
[342757505,1732114244011,-851.113808,0.000181,2]
[342757506,1732114244021,-690.58,0.00018218,2]
[342757507,1732114244030,-1500.0,0.00018273,2]
[342757508,1732114244039,-1500.0,0.00018371,2]
[342757509,1732114244048,-1500.0,0.00018847,2]
[342757510,1732114244057,-1500.0,0.00018928,2]
[342757511,1732114244066,-190.382,0.00018957,2]
[342757512,1732114244075,-570.8175724,0.00018987,2]
[342757513,1732114244087,-1199.4388081,0.00018987,2]
[342757514,1732114244096,-300.0,0.00019,2]
[342757515,1732114244106,-300.0,0.00019,5]
[342757516,1732114244115,-3614233.77,0.00019,2]
[342757517,1732114244124,-150.0,0.00019,2]
[342757518,1732114244133,-564.0,0.00019,2]
[342757519,1732114244142,-1256.0,0.00019,2]
[342757520,1732114244150,-1994.0,0.00019,2]
[342757521,1732114244159,-150.0,0.00019,2]
[342757522,1732114244168,-560.0,0.00019,2]
[342757523,1732114244176,-1926.0,0.00019,2]
[342757524,1732114244186,-3747.0,0.00019,2]
[342757525,1732114244205,-1260.0,0.00019,2]
[342757526,1732114244214,-920.0,0.00019,2]
[342757527,1732114244223,-815.0,0.00019,2]
[342757528,1732114244232,-150.0,0.00019,2]
[342757529,1732114244241,-150.0,0.00019014,2]
[342757530,1732114244251,-1500.0,0.00019078,2]
[342757531,1732114244260,-150.0,0.00019081,2]
[342757532,1732114244269,-150.0,0.00019094,2]
[342757533,1732114244278,-500.0,0.000191,2]
[342757534,1732114244287,-790.23,0.00019178,2]
[342757535,1732114244296,-1000.0,0.00019182,2]
[342757536,1732114244305,-410.50799475,0.00019186,2]
[342757537,1732114244315,-150.0,0.00019193,2]
[342757538,1732114244323,-150.0,0.00019194,2]
[342757539,1732114244335,-178.81,0.000192,2]
[342757540,1732114244344,-1121.03,0.00019225,2]
[342757541,1732114244353,-150.0,0.0001923,2]
[342757542,1732114244362,-150.0,0.0001924,2]
[342757543,1732114244371,-150.0,0.00019296,2]
[342757544,1732114244380,-150.0,0.00019307,2]
[342757545,1732114244389,-150.0,0.00019339,2]
[342757546,1732114244398,-150.0,0.00019358,2]
[342757547,1732114244407,-150.0,0.00019362,2]
[342757548,1732114244416,-150.0,0.00019371,2]
[342757549,1732114244426,-150.0,0.00019378,2]
[342757550,1732114244435,-1500.0,0.00019383,2]
[342757551,1732114244444,-150.0,0.00019385,2]
[342757552,1732114244454,-150.0,0.00019397,2]
[342757553,1732114244463,-150.0,0.00019403,2]
[342757554,1732114244473,-150.0,0.00019409,2]
[342757555,1732114244482,-150.0,0.00019414,2]
[342757556,1732114244491,-150.0,0.00019449,2]
[342757557,1732114244500,-150.0,0.00019454,2]
[342757558,1732114244510,-150.0,0.00019463,2]
[342757559,1732114244519,-150.0,0.00019473,2]
[342757560,1732114244529,-150.0,0.00019494,2]
[342757561,1732114244538,-150.0,0.00019506,2]
[342757562,1732114244548,-150.0,0.00019506,2]
[342757563,1732114244557,-432.72,0.00019513,2]
[342757564,1732114244567,-1230.25,0.00019513,2]
[342757565,1732114244577,-1500.0,0.00019525,2]
[342757566,1732114244589,-150.0,0.0001953,2]
[342757567,1732114244598,-690.58,0.00019588,2]
[342757568,1732114244608,-1500.0,0.00019589,2]
[342757569,1732114244618,-150.0,0.00019608,2]
[342757570,1732114244628,-150.0,0.00019642,2]
[342757571,1732114244637,-150.0,0.00019654,2]
[342757572,1732114244647,-218.8,0.00019658,2]
[342757573,1732114244657,-150.0,0.00019699,2]
[342757574,1732114244667,-150.0,0.00019711,2]
[342757575,1732114244677,-150.0,0.00019726,2]
[342757576,1732114244687,-150.0,0.00019751,2]
[342757577,1732114244697,-1500.0,0.00019752,2]
[342757578,1732114244706,-1500.0,0.0001977,2]
[342757579,1732114244716,-150.0,0.00019776,2]
[342757580,1732114244727,-150.0,0.00019787,2]
[342757581,1732114244737,-150.0,0.00019798,2]
[342757582,1732114244747,-217.24428823,0.00019825,2]
[342757583,1732114244757,-150.0,0.00019834,2]
[342757584,1732114244766,-150.0,0.00019848,2]
[342757585,1732114244776,-150.0,0.00019858,2]
[342757586,1732114244785,-150.0,0.00019864,2]
[342757587,1732114244794,-150.0,0.00019869,2]
[342757588,1732114244804,-150.0,0.0001992,2]
[342757589,1732114244813,-150.0,0.00019928,2]
[342757590,1732114244823,-1500.0,0.00019953,2]
[342757591,1732114244834,-1500.0,0.00019954,2]
[342757592,1732114244844,-1500.0,0.00019998,2]
[342757593,1732114244853,-296.53843962,0.0002,2]
[342757594,1732114244862,-9207.35999999,0.0002,4]
[342757595,1732114244872,-1231.92536346,0.0002,2]
[342757596,1732114244882,-1211.87186698,0.0002,5]
[342757597,1732114244892,-2441.0,0.0002,2]
[342757598,1732114244901,-2045.01410441,0.0002,2]
[342757599,1732114244911,-310.0,0.0002,5]
[342757600,1732114244921,-150.0,0.0002,2]
[342757601,1732114244932,-196.0,0.0002,2]
[342757602,1732114244942,-176.715,0.0002,2]
[342757603,1732114244954,-684.0,0.0002,3]
[342757604,1732114244963,-1000.0,0.0002,3]
[342757605,1732114244974,-499.999999,0.0002,2]
[342757606,1732114244984,-400.13663898,0.0002,2]
[342757607,1732114244994,-240.08198339,0.0002,2]
[342757608,1732114245004,-160.05465559,0.0002,2]
[342757609,1732114245014,-158.0,0.0002,2]
[342757610,1732114245024,-1000.0,0.0002,2]
[342757611,1732114245033,-121874.0,0.0002,2]
[342757612,1732114245044,-150.0,0.00020019,2]
[342757613,1732114245054,-150.0,0.00020026,2]
[342757614,1732114245064,-150.0,0.00020077,2]
[342757615,1732114245073,-262.77,0.000201,7]
[342757616,1732114245084,-500.0,0.000201,7]
[342757617,1732114245094,-500.0,0.000201,2]
[342757618,1732114245104,-150.0,0.00020114,2]
[342757619,1732114245114,-150.0,0.0002014,2]
[342757620,1732114245125,-150.0,0.0002014,2]
[342757621,1732114245135,-150.0,0.00020151,2]
[342757622,1732114245146,-150.0,0.00020166,2]
[342757623,1732114245156,-150.0,0.00020183,2]
[342757624,1732114245166,-150.0,0.00020198,2]
[342757625,1732114245175,-1500.0,0.00020209,2]
[342757626,1732114245186,-160.864485,0.0002021,3]
[342757627,1732114245196,-150.0,0.0002021,2]
[342757628,1732114245490,-150.0,0.00020212,2]
[342757629,1732114245500,-150.0,0.00020212,2]
[342757630,1732114245510,-150.0,0.00020235,2]
[342757631,1732114245520,-150.0,0.00020235,2]
[342757632,1732114245530,-1500.0,0.00020238,2]
[342757633,1732114245539,-150.0,0.00020238,2]
[342757634,1732114245548,-150.0,0.00020239,2]
[342757635,1732114245558,-150.0,0.00020248,2]
[342757636,1732114245567,-150.0,0.00020251,2]
[342757637,1732114245577,-150.0,0.00020278,2]
[342757638,1732114245588,-150.0,0.00020282,2]
[342757639,1732114245598,-150.0,0.00020286,2]
[342757640,1732114245607,-150.0,0.00020314,2]
[342757641,1732114245619,-150.0,0.00020317,2]
[342757642,1732114245629,-150.0,0.00020327,2]
[342757643,1732114245639,-150.0,0.0002033,2]
[342757644,1732114245648,-150.0,0.00020345,2]
[342757645,1732114245658,-150.0,0.00020353,2]
[342757646,1732114245668,-150.0,0.00020369,2]
[342757647,1732114245677,-150.0,0.00020399,2]
[342757648,1732114245687,-150.0,0.00020412,2]
[342757649,1732114245697,-150.0,0.00020419,2]
[342757650,1732114245707,-150.0,0.00020428,2]
[342757651,1732114245717,-150.0,0.0002043,2]
[342757652,1732114245727,-150.0,0.0002043,2]
[342757653,1732114245737,-150.0,0.00020432,2]
[342757654,1732114245747,-261.60435868,0.00020434,2]
[342757655,1732114245757,-150.0,0.00020444,2]
[342757656,1732114245767,-150.0,0.00020448,2]
[342757657,1732114245776,-150.0,0.00020449,2]
[342757658,1732114245786,-150.0,0.00020465,2]
[342757659,1732114245796,-150.0,0.00020465,2]
[342757660,1732114245806,-150.0,0.00020474,2]
[342757661,1732114245815,-150.0,0.00020479,2]
[342757662,1732114245824,-150.0,0.00020494,2]
[342757663,1732114245836,-1500.0,0.00020496,2]
[342757664,1732114245845,-11557.0,0.000205,3]
[342757665,1732114245855,-150.0,0.0002051,2]
[342757666,1732114245864,-150.0,0.00020523,2]
[342757667,1732114245874,-150.0,0.00020527,2]
[342757668,1732114245883,-150.0,0.00020528,2]
[342757669,1732114245893,-150.0,0.00020529,2]
[342757670,1732114245903,-150.0,0.00020534,2]
[342757671,1732114245914,-150.0,0.00020539,2]
[342757672,1732114245924,-150.0,0.00020545,2]
[342757673,1732114245939,-175.98,0.00020548,2]
[342757674,1732114245951,-150.0,0.00020552,2]
[342757675,1732114245961,-150.0,0.00020554,2]
[342757676,1732114245970,-150.0,0.00020562,2]
[342757677,1732114245980,-150.0,0.00020565,2]
[342757678,1732114245989,-150.0,0.0002057,2]
[342757679,1732114246000,-150.0,0.00020571,2]
[342757680,1732114246011,-1500.0,0.00020582,2]
[342757681,1732114246020,-150.0,0.00020582,2]
[342757682,1732114246030,-150.0,0.00020591,2]
[342757683,1732114246039,-150.0,0.00020616,2]
[342757684,1732114246050,-150.0,0.00020624,2]
[342757685,1732114246059,-150.0,0.00020632,2]
[342757686,1732114246070,-150.0,0.00020642,2]
[342757687,1732114246079,-150.0,0.00020644,2]
[342757688,1732114246090,-166.89162435,0.00020645,2]
[342757689,1732114246099,-150.0,0.00020646,2]
[342757690,1732114246108,-150.0,0.0002065,2]
[342757691,1732114246117,-150.0,0.00020655,2]
[342757692,1732114246128,-150.0,0.00020656,2]
[342757693,1732114246137,-150.0,0.00020659,2]
[342757694,1732114246147,-150.0,0.00020661,2]
[342757696,1732114246156,-150.0,0.00020664,2]
[342757698,1732114246165,-150.0,0.00020664,2]
[342757701,1732114246175,-150.0,0.00020678,2]
[342757703,1732114246186,-1122.77373964,0.00020678,2]
[342757705,1732114246197,-1095.74741676,0.00020678,2]
[342757707,1732114246206,-1087.70418186,0.00020678,2]
[342757709,1732114246215,-150.0,0.00020693,2]
[342757711,1732114246224,-150.0,0.00020693,2]
[342757713,1732114246234,-150.0,0.00020707,2]
[342757715,1732114246243,-150.0,0.0002071,2]
[342757716,1732114246252,-150.0,0.00020735,2]
[342757717,1732114246261,-150.0,0.00020771,2]
[342757718,1732114246270,-1500.0,0.00020776,2]
[342757719,1732114246280,-150.0,0.00020776,2]
[342757720,1732114246292,-150.0,0.0002078,2]
[342757721,1732114246301,-1000.0,0.000208,2]
[342757722,1732114246310,-229.0,0.000208,2]
[342757723,1732114246319,-363.0,0.000208,2]
[342757724,1732114246329,-150.0,0.00020816,2]
[342757725,1732114246342,-150.0,0.00020828,2]
[342757726,1732114246351,-150.0,0.0002083,2]
[342757727,1732114246361,-150.0,0.00020832,2]
[342757728,1732114246370,-218.70225857,0.00020838,2]
[342757729,1732114246379,-150.0,0.00020852,2]
[342757730,1732114246388,-150.0,0.00020853,2]
[342757731,1732114246397,-150.0,0.00020859,2]
[342757732,1732114246406,-150.0,0.0002086,2]
[342757733,1732114246416,-150.0,0.00020874,2]
[342757734,1732114246425,-150.0,0.00020889,2]
[342757735,1732114246434,-3787.15239522,0.0002089,2]
[342757736,1732114246444,-8868.26789897,0.0002089,2]
[342757737,1732114246454,-150.0,0.0002089,2]
[342757738,1732114246463,-150.0,0.00020895,2]
[342757739,1732114246472,-1000.0000001,0.000209,20]
[342757740,1732114246484,-150.0,0.00020904,2]
[342757741,1732114246494,-150.0,0.00020913,2]
[342757742,1732114246503,-150.0,0.00020915,2]
[342757743,1732114246512,-150.0,0.00020925,2]
[342757744,1732114246522,-150.0,0.00020949,2]
[342757745,1732114246532,-150.0,0.00020951,2]
[342757746,1732114246542,-150.0,0.00020952,2]
[342757747,1732114246551,-690.58,0.00020958,2]
[342757748,1732114246561,-150.0,0.00020961,2]
[342757749,1732114246570,-150.0,0.00020962,2]
[342757750,1732114246583,-150.0,0.00020964,2]
[342757751,1732114246592,-150.0,0.00020967,2]
[342757752,1732114246602,-150.0,0.00020968,2]
[342757753,1732114246612,-150.0,0.00020969,2]
[342757754,1732114246621,-150.0,0.00020979,2]
[342757755,1732114246631,-150.0,0.00020982,2]
[342757756,1732114246641,-150.0,0.00020986,2]
[342757757,1732114246650,-150.0,0.00020987,2]
[342757758,1732114246660,-150.0,0.00020997,2]
[342757759,1732114246670,-1138.05335277,0.00021,2]
[342757760,1732114246679,-187.78259195,0.00021,2]
[342757761,1732114246689,-150.0,0.00021,2]
[342757762,1732114246697,-150.0,0.00021005,2]
[342757763,1732114246707,-150.0,0.00021014,2]
[342757764,1732114246716,-300.0,0.00021038,2]
[342757765,1732114246725,-150.0,0.00021039,2]
[342757766,1732114246735,-150.0,0.0002104,2]
[342757767,1732114246745,-150.0,0.00021049,2]
[342757768,1732114246754,-150.0,0.00021068,2]
[342757769,1732114246763,-150.0,0.00021095,2]